lending/lending_fUSD_20240816
["ID","MTS","AMOUNT","RATE_DAILY","PERIOD"]
[335082534,1723812633581,-194.76,0.00020811,2]
[335082535,1723812633590,-285.13,0.00021032,2]
[335082536,1723812633600,-2774.99,0.0002109,2]
[335082537,1723812633610,-177.19,0.00021122,2]
[335082538,1723812633620,-23900.0,0.00021126,2]
[335082539,1723812633629,-559.19,0.00021168,2]
[335082540,1723812633639,-250.0,0.00021205,2]
[335082541,1723812633648,-1000.0,0.00021324,2]
[335082542,1723812633658,-688.51,0.00021456,2]
[335082543,1723812633668,-163.07,0.00021554,2]
[335082544,1723812633677,-1000.58031,0.0002278,2]
[335082545,1723812633686,-150.0,0.00022835,2]
[335082546,1723812633696,-150.0,0.00022886,2]
[335082547,1723812633706,-500.0,0.00022902,2]
[335082548,1723812633718,-2643.411,0.00022902,2]
[335082549,1723812633732,-1000.0,0.00022902,2]
[335082550,1723812633742,-150.0,0.00022903,2]
[335082551,1723812633752,-328.5435,0.00022913,2]
[335082552,1723812633762,-150.0,0.00022986,4]
[335082553,1723812633771,-150.0,0.00022986,4]
[335082554,1723812633781,-150.0,0.00022986,4]
[335082555,1723812633791,-150.0,0.00022986,4]
[335082556,1723812633801,-152.9703349,0.00022987,2]
[335082557,1723812633811,-150.0,0.00022987,2]
[335082558,1723812633821,-151.64,0.00022993,2]
[335082559,1723812633830,-1636.0,0.00023,15]
[335082560,1723812633840,-1001.7,0.00023,3]
[335082561,1723812633849,-200.0,0.00023,2]
[335082562,1723812633859,-237.32267486,0.00023002,2]
[335082563,1723812633869,-210912.267064,0.00023003,3]
[335082564,1723812633879,-127472.301719,0.00023003,3]
[335082565,1723812633888,-151.64,0.00023003,2]
[335082566,1723812633898,-151.64,0.00023003,2]
[335082567,1723812633908,-151.64,0.00023003,2]
[335082568,1723812633917,-42703.9156455,0.00023003,3]
[335082569,1723812633937,-115890.31291637,0.00023003,3]
[335082570,1723812633963,-26820.02848413,0.00023003,3]
[335082571,1723812633972,-151.64,0.00023003,2]
[335082572,1723812633982,-151.64,0.00023003,2]
[335082573,1723812633991,-14099.07821634,0.00023008,2]
[335082578,1723812638046,-1471.93,0.00020803,2]
[335082580,1723812638056,-153.92,0.00022903,2]
[335082581,1723812638066,-8414.54540366,0.00023008,2]
[335082582,1723812638075,-2642.81659634,0.00023008,2]
[335082584,1723812638105,-2138.51642116,0.00023008,2]
[335082585,1723812638115,-240.4883737,0.00023008,2]
[335082586,1723812638261,-153.92,0.0002299,2]
[335082587,1723812638270,-390.46170658,0.00023008,2]
[335082588,1723812638282,-1673.84318912,0.00023008,2]
[335082589,1723812638291,-2357.13092033,0.00023013,15]
[335082590,1723812638371,-6333.45720213,0.00023013,15]
[335082591,1723812638382,-32143.44763438,0.00023013,15]
[335082592,1723812638395,-58000.0,0.00023013,15]
[335082749,1723812640216,-153.92,0.0002299,2]
[335082751,1723812640226,-153.92,0.00022992,2]
[335082753,1723812640235,-153.92,0.00022992,2]
[335082755,1723812640245,-153.92,0.00022992,2]
[335082757,1723812640254,-90.39383781,0.00022992,2]
[335082759,1723812640265,-63.52616219,0.00022992,2]
[335082761,1723812640275,-153.92,0.00022992,2]
[335082763,1723812640284,-153.92,0.00022992,2]
[335082765,1723812640293,-153.92,0.00022992,2]
[335082767,1723812640303,-153.92,0.00022992,2]
[335082769,1723812640312,-631484.23433004,0.00023013,15]
[335082771,1723812640321,-150.0,0.00023013,4]
[335082773,1723812640332,-300.0,0.00023013,5]
[335082775,1723812640341,-573.1560957,0.00023013,2]
[335082777,1723812640355,-1901.68,0.00023013,10]
[335082779,1723812640364,-1901.68,0.00023013,10]
[335082781,1723812640373,-1901.68,0.00023013,10]
[335082783,1723812640383,-1901.68,0.00023013,10]
[335082785,1723812640394,-1901.68,0.00023013,10]
[335082787,1723812640404,-1901.68,0.00023013,10]
[335082789,1723812640414,-1901.68,0.00023013,10]
[335082791,1723812640424,-1901.68,0.00023013,10]
[335082793,1723812640435,-1901.68,0.00023013,10]
[335082795,1723812640445,-1901.68,0.00023013,10]
[335082796,1723812640454,-1901.68,0.00023013,10]
[335082797,1723812640467,-1901.68,0.00023013,10]
[335082798,1723812640476,-1901.68,0.00023013,10]
[335082799,1723812640485,-1901.68,0.00023013,10]
[335082800,1723812640494,-1901.68,0.00023013,10]
[335082801,1723812640504,-1901.68,0.00023013,10]
[335082802,1723812640513,-1901.68,0.00023013,10]
[335082803,1723812640522,-1901.68,0.00023013,10]
[335082804,1723812640531,-1901.68,0.00023013,10]
[335082805,1723812640542,-1901.68,0.00023013,10]
[335082806,1723812640551,-1901.68,0.00023013,10]
[335082807,1723812640561,-1901.68,0.00023013,10]
[335082817,1723812640899,-1901.68,0.00023013,10]
[335082818,1723812640908,-1901.68,0.00023013,10]
[335082820,1723812640918,-862.08,0.00023013,10]
[335082822,1723812640927,-862.08,0.00023013,10]
[335082824,1723812640937,-500.0,0.00023013,10]
[335082825,1723812640946,-862.08,0.00023013,10]
[335082826,1723812640955,-500.0,0.00023013,10]
[335082828,1723812640967,-862.08,0.00023013,10]
[335082829,1723812640977,-500.0,0.00023013,10]
[335082830,1723812640987,-862.08,0.00023013,10]
[335082831,1723812640996,-500.0,0.00023013,10]
[335082832,1723812641006,-862.08,0.00023013,10]
[335082833,1723812641016,-500.0,0.00023013,10]
[335082834,1723812641025,-862.08,0.00023013,10]
[335082835,1723812641035,-500.0,0.00023013,10]
[335082836,1723812641044,-862.08,0.00023013,10]
[335082837,1723812641053,-500.0,0.00023013,10]
[335082838,1723812641063,-862.08,0.00023013,10]
[335082839,1723812641072,-277.81520107,0.00023013,10]
[335082840,1723812641122,-222.18479893,0.00023013,10]
[335082841,1723812641132,-862.08,0.00023013,10]
[335082842,1723812641141,-500.0,0.00023013,10]
[335082843,1723812641151,-862.08,0.00023013,10]
[335082844,1723812641160,-500.0,0.00023013,10]
[335082845,1723812641169,-862.08,0.00023013,10]
[335082846,1723812641178,-219.01852826,0.00023013,10]
[335082847,1723812641188,-862.08,0.00023013,10]
[335082848,1723812641197,-862.08,0.00023013,10]
[335082849,1723812641206,-862.08,0.00023013,10]
[335082850,1723812641217,-862.08,0.00023013,10]
[335082851,1723812641226,-862.08,0.00023013,10]
[335082852,1723812641236,-862.08,0.00023013,10]
[335082853,1723812641246,-862.08,0.00023013,10]
[335082854,1723812641256,-862.08,0.00023013,10]
[335082855,1723812641266,-862.08,0.00023013,10]
[335082856,1723812641276,-500.0,0.00023013,10]
[335082857,1723812641286,-862.08,0.00023013,10]
[335082858,1723812641298,-500.0,0.00023013,10]
[335082859,1723812641307,-862.08,0.00023013,10]
[335082860,1723812641316,-500.0,0.00023013,10]
[335082861,1723812641325,-862.23784537,0.00023013,10]
[335082862,1723812641335,-500.0,0.00023013,10]
[335082863,1723812641346,-500.0,0.00023013,10]
[335082864,1723812641355,-266.85100713,0.00023013,10]
[335082865,1723812641365,-500.0,0.00023013,10]
[335082866,1723812641374,-500.0,0.00023013,10]
[335082867,1723812641385,-500.0,0.00023013,10]
[335082868,1723812641394,-500.0,0.00023013,10]
[335082869,1723812641403,-500.0,0.00023013,10]
[335082870,1723812641412,-500.0,0.00023013,10]
[335082871,1723812641423,-542.25776112,0.00023013,10]
[335082872,1723812641432,-648.57,0.00023013,10]
[335082873,1723812641442,-648.57,0.00023013,10]
[335082874,1723812641451,-648.57,0.00023013,10]
[335082875,1723812641460,-648.57,0.00023013,10]
[335082876,1723812641471,-648.57,0.00023013,10]
[335082877,1723812641482,-648.57,0.00023013,10]
[335082878,1723812641491,-648.57,0.00023013,10]
[335082879,1723812641500,-648.57,0.00023013,10]
[335082880,1723812641510,-648.57,0.00023013,10]
[335082881,1723812641520,-648.57,0.00023013,10]
[335082882,1723812641530,-648.57,0.00023013,10]
[335082883,1723812641539,-648.57,0.00023013,10]
[335082884,1723812641548,-648.57,0.00023013,10]
[335082885,1723812641558,-648.57,0.00023013,10]
[335082886,1723812641567,-648.57,0.00023013,10]
[335082887,1723812641576,-648.57,0.00023013,10]
[335082888,1723812641585,-648.57,0.00023013,10]
[335082889,1723812641594,-648.57,0.00023013,10]
[335082890,1723812641603,-486.49825007,0.00023013,10]
[335082891,1723812641612,-648.57,0.00023013,10]
[335082892,1723812641622,-648.57,0.00023013,10]
[335082893,1723812641631,-648.57,0.00023013,10]
[335082894,1723812641640,-648.57,0.00023013,10]
[335082895,1723812641650,-648.57,0.00023013,10]
[335082896,1723812641659,-648.73,0.00023013,10]
[335082897,1723812641668,-500.0,0.00023013,10]
[335082898,1723812641677,-500.0,0.00023013,10]
[335082899,1723812641686,-500.0,0.00023013,10]
[335082900,1723812641695,-500.0,0.00023013,10]
[335082901,1723812641704,-500.0,0.00023013,10]
[335082902,1723812641716,-500.0,0.00023013,10]
[335082903,1723812641729,-500.0,0.00023013,10]
[335082904,1723812641738,-500.0,0.00023013,10]
[335082905,1723812641747,-500.0,0.00023013,10]
[335082906,1723812641756,-500.0,0.00023013,10]
[335082907,1723812641765,-500.0,0.00023013,10]
[335082908,1723812641774,-500.0,0.00023013,10]
[335082909,1723812641783,-500.0,0.00023013,10]
[335082910,1723812641792,-500.0,0.00023013,10]
[335082911,1723812641801,-160.93607136,0.00023013,10]
[335082912,1723812641811,-500.0,0.00023013,10]
[335082913,1723812641820,-500.0,0.00023013,10]
[335082914,1723812641829,-500.0,0.00023013,10]
[335082915,1723812641839,-500.0,0.00023013,10]
[335082916,1723812641848,-500.0,0.00023013,10]
[335082917,1723812641859,-500.0,0.00023013,10]
[335082918,1723812641869,-500.0,0.00023013,10]
[335082919,1723812641878,-500.0,0.00023013,10]
[335082920,1723812641888,-500.0,0.00023013,10]
[335082921,1723812641897,-500.0,0.00023013,10]
[335082922,1723812641907,-500.0,0.00023013,10]
[335082923,1723812641916,-500.0,0.00023013,10]
[335082924,1723812641925,-500.0,0.00023013,10]
[335082925,1723812641935,-500.0,0.00023013,10]
[335082926,1723812641944,-500.0,0.00023013,10]
[335082927,1723812641953,-500.0,0.00023013,10]
[335082928,1723812641963,-500.0,0.00023013,10]
[335082929,1723812641972,-500.0,0.00023013,10]
[335082930,1723812641982,-500.0,0.00023013,10]
[335082931,1723812641991,-500.0,0.00023013,10]
[335082932,1723812642000,-500.0,0.00023013,10]
[335082933,1723812642010,-500.0,0.00023013,10]
[335082934,1723812642019,-500.0,0.00023013,10]
[335082935,1723812642029,-205.51890765,0.00023013,10]
[335082936,1723812642038,-1656.22,0.00023013,10]
[335082937,1723812642047,-1656.22,0.00023013,10]
[335082938,1723812642057,-1656.22,0.00023013,10]
[335082939,1723812642066,-182.65940686,0.00023013,10]
[335082940,1723812642161,-468.88364824,0.00023013,10]
[335082941,1723812642186,-153.92,0.00022992,2]
[335082942,1723812642195,-284.29464902,0.00023013,10]
[335082943,1723812642207,-720.38229588,0.00023013,10]
[335082944,1723812642218,-1656.22,0.00023013,10]
[335082945,1723812642227,-1656.22,0.00023013,10]
[335082946,1723812642236,-1656.22,0.00023013,10]
[335082947,1723812642245,-1656.22,0.00023013,10]
[335082948,1723812642254,-1656.22,0.00023013,10]
[335082949,1723812642264,-1656.22,0.00023013,10]
[335082950,1723812642273,-53.57279582,0.00023013,10]
[335082965,1723812644497,-153.92,0.00022992,2]
[335082966,1723812644506,-153.92,0.00022992,2]
[335082967,1723812644516,-105.2764353,0.00022992,2]
[335082968,1723812644527,-48.6435647,0.00022992,2]
[335082969,1723812644536,-153.92,0.00022992,2]
[335082970,1723812644546,-153.92,0.00022992,2]
[335082971,1723812644555,-43.82125481,0.00022992,2]
[335082972,1723812644567,-110.09874519,0.00022992,2]
[335082973,1723812644576,-153.92,0.00022992,2]
[335082974,1723812644585,-153.92,0.00022992,2]
[335082975,1723812644595,-82.06125481,0.00022992,2]
[335082977,1723812645695,-71.85874519,0.00022992,2]
[335082978,1723812645705,-153.92,0.00022992,2]
[335082979,1723812645717,-314.34184377,0.00023013,10]
[335082980,1723812645732,-356.0784175,0.00023013,10]
[335082981,1723812645744,-932.22694291,0.00023013,10]
[335082982,1723812645753,-1656.22,0.00023013,10]
[335082983,1723812645763,-1656.22,0.00023013,10]
[335082984,1723812645772,-1656.22,0.00023013,10]
[335082985,1723812645782,-1656.22,0.00023013,10]
[335082986,1723812645791,-1597.30851397,0.00023013,10]
[335082987,1723812645803,-58.91148603,0.00023013,10]
[335082988,1723812645813,-1656.22,0.00023013,10]
[335082989,1723812645823,-1656.22,0.00023013,10]
[335082990,1723812645832,-1656.22,0.00023013,10]
[335082991,1723812645841,-740.46153228,0.00023013,10]
[335083012,1723812646398,-250.0,0.00022298,2]
[335083013,1723812646407,-153.92,0.00022992,2]
[335083014,1723812646416,-96.08,0.00022992,2]
[335083015,1723812646430,-57.84,0.00022992,2]
[335083016,1723812646439,-153.92,0.00022992,2]
[335083017,1723812646449,-138.01936962,0.00022992,2]
[335083018,1723812646460,-15.90063038,0.00022992,2]
[335083019,1723812646472,-153.92,0.00022992,2]
[335083020,1723812646481,-153.92,0.00022992,2]
[335083021,1723812646491,-153.92,0.00022992,2]
[335083022,1723812646501,-153.92,0.00022992,2]
[335083023,1723812646511,-153.92,0.00022992,2]
[335083024,1723812646521,-659.19202962,0.00023013,10]
[335083025,1723812646533,-256.5664381,0.00023013,10]
[335083026,1723812646543,-384.98356191,0.00023013,10]
[335083027,1723812646556,-498.62,0.00023013,10]
[335083029,1723812646568,-772.61643809,0.00023013,10]
[335083030,1723812646578,-1656.22,0.00023013,10]
[335083031,1723812646588,-1027.96356191,0.00023013,10]
[335083032,1723812646621,-628.25643809,0.00023013,10]
[335083033,1723812646631,-1462.77016181,0.00023013,10]
[335083034,1723812646656,-193.5179241,0.00023013,10]
[335083035,1723812646665,-442.32493873,0.00023013,10]
[335083036,1723812646759,-153.92,0.00022992,2]
[335083037,1723812646768,-418.39506127,0.00023013,10]
[335083038,1723812646778,-860.72,0.00023013,10]
[335083039,1723812646788,-860.72,0.00023013,10]
[335083040,1723812646797,-860.72,0.00023013,10]
[335083041,1723812646806,-860.72,0.00023013,10]
[335083042,1723812646815,-860.72,0.00023013,10]
[335083043,1723812646824,-860.72,0.00023013,10]
[335083044,1723812646833,-44.06903873,0.00023013,10]
[335083047,1723812665564,2000.0,0.00022127,120]
[335083059,1723813008620,181.72573335,0.00025,120]
[335083062,1723813197777,948.36,0.00020373,120]
[335083085,1723813501006,190.19,0.00024977,120]
[335083090,1723813628809,150.0,0.0001,2]
[335083091,1723813628831,150.0,0.0001,2]
[335083092,1723813628854,150.0,0.0001,2]
[335083093,1723813628876,100.0,0.0001,2]
[335083103,1723813803524,150.0,0.0001,2]
[335083104,1723813803720,150.0,0.0001,2]
[335083105,1723813803970,150.0,0.0001,2]
[335083106,1723813804119,150.0,0.0001,2]
[335083107,1723813804141,0.93084864,0.0001,2]
[335083120,1723813832313,-201.71555854,0.00013001,2]
[335083121,1723813832323,-711.82892756,0.00013042,2]
[335083122,1723813832332,-330.29507359,0.00013052,2]
[335083123,1723813832341,-365.68617671,0.00013086,2]
[335083124,1723813832351,-419.23699242,0.00013086,2]
[335083125,1723813832361,-419.23699242,0.00013086,2]
[335083126,1723813832371,-179.51849561,0.00013086,2]
[335083127,1723813832381,-514.3344,0.00013192,2]
[335083128,1723813832391,-155.0,0.00013292,2]
[335083129,1723813832400,-1894.05863356,0.0001385,2]
[335083130,1723813832409,-915.00603683,0.00013861,2]
[335083131,1723813832418,-155.16462361,0.00014225,2]
[335083132,1723813832427,-523.08333089,0.00014398,2]
[335083133,1723813832436,-300.0,0.00014999,2]
[335083134,1723813832446,-2235.0,0.00015,2]
[335083135,1723813832455,-153.52,0.0001594,2]
[335083136,1723813832464,-150.99,0.00016416,2]
[335083137,1723813832474,-420.0,0.00016416,2]
[335083138,1723813832483,-499.99,0.00016584,2]
[335083139,1723813832493,-150.0,0.000172,2]
[335083140,1723813832503,-300.0,0.00017533,2]
[335083141,1723813832512,-587.42,0.00017534,2]
[335083142,1723813832521,-16486.56,0.00017534,2]
[335083143,1723813832531,-150.0,0.00017966,2]
[335083144,1723813832542,-847.88,0.0001811,2]
[335083145,1723813832552,-250.0,0.00019481,2]
[335083146,1723813832561,-735.96,0.00019614,2]
[335083147,1723813832570,-200.0,0.00019646,2]
[335083148,1723813832580,-346.79,0.00019802,2]
[335083149,1723813832589,-250.0,0.00019946,2]
[335083150,1723813832599,-190.19,0.00019982,2]
[335083151,1723813832609,-500.0,0.00019999,2]
[335083152,1723813832620,-500.0,0.00019999,2]
[335083153,1723813832630,-10000.0,0.00020007,2]
[335083154,1723813832639,-1368.7,0.00020009,2]
[335083155,1723813832649,-1975.9,0.00020162,2]
[335083156,1723813832659,-200.0,0.00020229,2]
[335083157,1723813832668,-23900.0,0.00020293,2]
[335083158,1723813832678,-847.88,0.00020374,2]
[335083159,1723813832688,-150.0,0.00020688,4]
[335083160,1723813832697,-159.12,0.00020984,2]
[335083161,1723813832707,-170.48,0.00021016,2]
[335083163,1723813832716,-1000.0,0.00021155,2]
[335083164,1723813832726,-4047.08,0.00021219,2]
[335083166,1723813832735,-150.0,0.00021837,4]
[335083168,1723813832745,-170.13,0.00021887,2]
[335083169,1723813832754,-243.13,0.00021938,2]
[335083170,1723813832764,-200.0,0.00022,8]
[335083171,1723813832773,-1000.0,0.00022089,2]
[335083172,1723813832783,-500.0,0.000221,8]
[335083173,1723813832792,-800.0,0.000222,8]
[335083174,1723813832802,-1100.0,0.000223,8]
[335083175,1723813832813,-1300.0,0.000224,8]
[335083176,1723813832823,-190.19,0.0002248,2]
[335083177,1723813832832,-200.0,0.000225,8]
[335083178,1723813832847,-200.0,0.000226,8]
[335083179,1723813832856,-847.88,0.00022638,2]
[335083180,1723813832867,-200.0,0.000227,8]
[335083181,1723813832876,-461.1654,0.00022702,2]
[335083182,1723813832886,-862.31334,0.0002278,2]
[335083183,1723813832895,-1886.87117292,0.0002279,2]
[335083184,1723813832905,-200.0,0.000228,8]
[335083185,1723813832914,-1451.1123,0.00022802,2]
[335083186,1723813832926,-21121.5805,0.00022802,2]
[335083187,1723813832936,-2139.003,0.00022802,2]
[335083188,1723813832945,-2500.0,0.00022802,2]
[335083189,1723813832955,-264.9778394,0.00022899,2]
[335083190,1723813832965,-10942.58180465,0.000229,31]
[335083191,1723813832974,-392.20809378,0.000229,2]
[335083192,1723813832983,-800.0,0.000229,8]
[335083193,1723813832992,-264.97783936,0.00022901,2]
[335083194,1723813833002,-220.5453,0.00022902,2]
[335083195,1723813833012,-100000.0,0.00022902,2]
[335083196,1723813833021,-163.67346565,0.00022903,2]
[335083197,1723813833030,-264.97783936,0.00022903,2]
[335083198,1723813833039,-264.97783936,0.00022905,2]
[335083199,1723813833049,-264.97783936,0.00022907,2]
[335083200,1723813833058,-394.91264806,0.00022913,2]
[335083201,1723813833071,-626.83064209,0.00022913,2]
[335083202,1723813833083,-5884.71990985,0.00022913,2]
[335083203,1723813833092,-468.1942,0.00022913,2]
[335083204,1723813833102,-305.61263078,0.00022913,2]
[335083205,1723813833111,-715.15137906,0.00022913,2]
[335083206,1723813833122,-150.0,0.00022986,4]
[335083207,1723813833131,-150.0,0.00022986,4]
[335083208,1723813833141,-150.0,0.00022986,4]
[335083209,1723813833150,-150.0,0.00022986,4]
[335083210,1723813833159,-325.05782357,0.0002299,3]
[335083211,1723813833187,-4819.72288881,0.0002299,3]
[335083212,1723813833199,-4843.30926104,0.0002299,3]
[335083213,1723813833230,-28273.35577588,0.0002299,3]
[335083214,1723813833239,-151.64,0.0002299,2]
[335083215,1723813833249,-3478.31324994,0.00022992,3]
[335083216,1723813833259,-151.64,0.00022992,2]
[335083217,1723813833268,-6956.62649988,0.00022998,3]
[335083218,1723813833277,-30067.91587872,0.00022998,5]
[335083219,1723813833287,-1923.61744162,0.00022999,10]
[335083220,1723813833296,-1681.87852498,0.00023,2]
[335083221,1723813833306,-184662.189875,0.00023,7]
[335083222,1723813833315,-12228.87552392,0.00023,2]
[335083223,1723813833325,-200.0,0.00023,2]
[335083224,1723813833335,-1739.15662497,0.00023,3]
[335083225,1723813833344,-264473.11858109,0.00023003,3]
[335083226,1723813833357,-23177.24728091,0.00023003,3]
[335083227,1723813833703,-151.64,0.00023003,2]
[335083228,1723813833713,-151.64,0.00023003,2]
[335083229,1723813833723,-151.64,0.00023003,2]
[335083230,1723813833732,-151.64,0.00023003,2]
[335083231,1723813833742,-3716.19271909,0.0002301,2]
[335083232,1723813833754,-1800.0,0.0002301,2]
[335083246,1723813838298,-529.97645753,0.00022803,2]
[335083248,1723813838308,-264.97783936,0.00022909,2]
[335083250,1723813838319,-275.8741939,0.0002301,2]
[335083257,1723813838434,-1544.59791416,0.0002301,2]
[335083258,1723813838446,-1466.43431141,0.0002301,2]
[335083259,1723813838461,-606.93581201,0.0002301,2]
[335083260,1723813838523,-1014.6173005,0.0002301,2]
[335083261,1723813838543,-1080.68345125,0.0002301,2]
[335083262,1723813838555,-265.78216075,0.0002301,2]
[335083269,1723813838667,-777.16020434,0.0002301,2]
[335083467,1723813840511,-906.75013243,0.0002301,2]
[335083469,1723813840521,-2385.8445765,0.00023011,2]
[335083470,1723813840531,-929.19064205,0.00023011,2]
[335083471,1723813840542,-4158.89770095,0.00023011,2]
[335083472,1723813840551,-2098.25595493,0.00023011,2]
[335083473,1723813840563,-3670.0,0.00023011,2]
[335083474,1723813840573,-2740.0,0.00023011,2]
[335083475,1723813840584,-260.39166988,0.00023011,2]
[335083476,1723813840606,-1765.19999999,0.00023011,2]
[335083477,1723813840618,-701.66503495,0.00023011,2]
[335083478,1723813840629,-1209.49724686,0.00023011,2]
[335083479,1723813840644,-273.765,0.00023011,2]
[335083480,1723813840794,-300.0,0.00023011,2]
[335083481,1723813840806,-356.95491686,0.00023011,2]
[335083482,1723813840859,-2015.94855758,0.00023011,2]
[335083483,1723813840871,-5674.29993077,0.00023011,2]
[335083502,1723813844038,-529.97645752,0.00022815,2]
[335083504,1723813844048,-293.55013079,0.00023011,2]
[335083511,1723813844323,-895.88804481,0.00023011,2]
[335083512,1723813844334,-353.287,0.00023011,2]
[335083521,1723813846402,-264.06840755,0.00022827,2]
[335083522,1723813846520,-265.90804997,0.00022827,2]
[335083523,1723813846530,-264.97783936,0.00022911,2]
[335083524,1723813846540,-122.86423598,0.00023011,2]
[335083525,1723813846550,-151.0,0.00023012,7]
[335083526,1723813846560,-151.0,0.00023012,7]
[335083527,1723813846570,-237.53645481,0.00023012,15]
[335083528,1723813846591,-6751.79144901,0.00023012,15]
[335083529,1723813846606,-1216.07779227,0.00023012,15]
[335083530,1723813846619,-299.16,0.00023012,15]
[335083531,1723813846632,-694.42897108,0.00023012,15]
[335083532,1723813846695,-431.22961645,0.00023012,15]
[335083533,1723814033770,289.89,0.00024682,120]
[335083544,1723814708687,150.0,0.00011,2]
[335083545,1723814708712,150.0,0.00011,2]
[335083546,1723814708737,150.0,0.00011,2]
[335083547,1723814708763,150.0,0.00011,2]
[335083548,1723814708797,150.0,0.00011,2]
[335083549,1723814708821,150.0,0.00011,2]
[335083550,1723814708846,150.0,0.00011,2]
[335083551,1723814708873,150.0,0.00011,2]
[335083552,1723814708904,150.0,0.00011,2]
[335083553,1723814708929,150.0,0.00011,2]
[335083554,1723814708955,150.0,0.00011,2]
[335083555,1723814708980,150.0,0.00011,2]
[335083556,1723814709005,150.0,0.00011,2]
[335083557,1723814709030,150.0,0.00011,2]
[335083558,1723814709055,283.72414031,0.00011,2]
[335083559,1723814709083,886490.87460563,0.00011,2]
[335083560,1723814712972,1023.9115047,0.000109,2]
[335083561,1723814737084,150.0,9.5e-05,2]
[335083562,1723814737105,150.0,9.5e-05,2]
[335083563,1723814737126,150.0,9.5e-05,2]
[335083564,1723814737147,261.88444547,9.5e-05,2]
[335083565,1723814737168,150.0,9.5e-05,2]
[335083566,1723814737190,1238.11555453,9.5e-05,2]
[335083567,1723814809993,169.91677294,0.00011515,2]
[335083568,1723814818105,150.0,0.00011515,2]
[335083569,1723814818126,150.0,0.00011515,2]
[335083570,1723814818149,150.0,0.00011515,2]
[335083571,1723814818172,150.0,0.00011515,2]
[335083572,1723814818195,150.0,0.00011515,2]
[335083573,1723814818217,36.237155,0.00011515,2]
[335083574,1723814825679,493.49814527,0.00011515,2]
[335083575,1723814831951,150.0,0.00011515,2]
[335083576,1723814831972,150.0,0.00011515,2]
[335083577,1723814831993,150.0,0.00011515,2]
[335083578,1723814832013,150.0,0.00011515,2]
[335083579,1723814832035,150.0,0.00011515,2]
[335083580,1723814832055,49.45832556,0.00011515,2]
[335083597,1723815003039,150.0,0.00011515,2]
[335083606,1723815031604,-1725.0,0.00012613,2]
[335083607,1723815031614,-2311.78039342,0.00012942,2]
[335083608,1723815031624,-633.96367293,0.00012966,2]
[335083609,1723815031633,-155.0,0.00013001,2]
[335083610,1723815031642,-419.23699242,0.00013052,2]
[335083611,1723815031653,-4065.26714382,0.00013052,2]
[335083612,1723815031663,-179.51849561,0.00013086,2]
[335083613,1723815031672,-1773.06757292,0.00013086,2]
[335083614,1723815031682,-155.0,0.00013391,2]
[335083615,1723815031692,-15481.61989988,0.00013687,2]
[335083616,1723815031701,-1040.87004837,0.0001377,2]
[335083617,1723815031711,-1257.5209126,0.00013851,2]
[335083618,1723815031720,-227.42053822,0.00013851,2]
[335083619,1723815031731,-150.0,0.0001386,2]
[335083620,1723815031741,-2502.58566001,0.00013861,2]
[335083621,1723815031752,-164.44192191,0.00013861,2]
[335083622,1723815031766,-155.59382276,0.00013861,2]
[335083623,1723815031777,-418.40617802,0.00013861,2]
[335083624,1723815031786,-155.47939833,0.00013861,2]